fUSD/lending_fUSD_20240805
["ID","MTS","AMOUNT","RATE_DAILY","PERIOD"]
[334217984,1722844024541,-306.69536824,0.00043835,60]
[334217985,1722844024577,-500.0,0.00043835,60]
[334217986,1722844024613,-500.0,0.00043835,60]
[334217987,1722844024648,-792.49,0.00043835,60]
[334217988,1722844024683,-500.0,0.00043835,60]
[334217989,1722844024718,-500.0,0.00043835,60]
[334217990,1722844024757,-500.0,0.00043835,60]
[334217991,1722844024795,-2364.16,0.00043835,60]
[334217992,1722844024832,-792.49,0.00043835,60]
[334217993,1722844024869,-500.0,0.00043835,60]
[334217994,1722844025130,-792.49,0.00043835,60]
[334217995,1722844025168,-500.0,0.00043835,60]
[334217996,1722844025204,-500.0,0.00043835,60]
[334217997,1722844025240,-500.0,0.00043835,60]
[334217998,1722844025274,-792.49,0.00043835,60]
[334217999,1722844025315,-500.0,0.00043835,60]
[334218000,1722844025351,-792.49,0.00043835,60]
[334218001,1722844025386,-500.0,0.00043835,60]
[334218002,1722844025420,-871.78,0.00043835,60]
[334218003,1722844025455,-500.0,0.00043835,60]
[334218004,1722844025490,-621.57651596,0.00043835,60]
[334218005,1722844025525,-792.49,0.00043835,60]
[334218006,1722844025571,-555.19782218,0.00043835,60]
[334218007,1722844025606,-792.49,0.00043835,60]
[334218008,1722844025641,-792.49,0.00043835,60]
[334218009,1722844025676,-792.49,0.00043835,60]
[334218010,1722844025710,-792.49,0.00043835,60]
[334218011,1722844025744,-500.0,0.00043835,60]
[334218012,1722844025778,-792.49,0.00043835,60]
[334218013,1722844025820,-792.49,0.00043835,60]
[334218014,1722844025856,-792.49,0.00043835,60]
[334218015,1722844025892,-792.49,0.00043835,60]
[334218016,1722844025928,-792.49,0.00043835,60]
[334218017,1722844025962,-500.0,0.00043835,60]
[334218018,1722844025998,-792.49,0.00043835,60]
[334218019,1722844026039,-792.49,0.00043835,60]
[334218020,1722844026077,-792.49,0.00043835,60]
[334218021,1722844026114,-306.78910715,0.00043835,60]
[334218022,1722844026151,-500.0,0.00043835,60]
[334218023,1722844026188,-792.49,0.00043835,60]
[334218024,1722844026223,-792.64668412,0.00043835,60]
[334218025,1722844026260,-1176.28,0.00043835,60]
[334218026,1722844026296,-2932.21,0.00043835,60]
[334218027,1722844026332,-500.44571095,0.00043835,60]
[334218028,1722844026368,-500.0,0.00043835,60]
[334218029,1722844026403,-500.0,0.00043835,60]
[334218030,1722844026440,-500.0,0.00043835,60]
[334218031,1722844026475,-500.0,0.00043835,60]
[334218032,1722844026510,-500.0,0.00043835,60]
[334218033,1722844026545,-1369.01,0.00043835,60]
[334218034,1722844026581,-500.0,0.00043835,60]
[334218035,1722844026615,-962.6,0.00043835,60]
[334218036,1722844026652,-551.05,0.00043835,60]
[334218037,1722844026692,-500.0,0.00043835,60]
[334218038,1722844026732,-929.8,0.00043835,60]
[334218039,1722844026770,-1590.64,0.00043835,60]
[334218040,1722844026821,-201.03566472,0.00043835,60]
[334218041,1722844026861,-500.0,0.00043835,60]
[334218042,1722844026902,-500.0,0.00043835,60]
[334218043,1722844026945,-500.0,0.00043835,60]
[334218044,1722844026983,-500.0,0.00043835,60]
[334218045,1722844027022,-500.0,0.00043835,60]
[334218046,1722844027070,-2220.92,0.00043835,60]
[334218047,1722844027107,-500.45005104,0.00043835,60]
[334218048,1722844027145,-1744.69,0.00043835,60]
[334218049,1722844027183,-1678.91,0.00043835,60]
[334218050,1722844027221,-500.0,0.00043835,60]
[334218051,1722844027259,-1493.19,0.00043835,60]
[334218052,1722844027296,-1416.08,0.00043835,60]
[334218053,1722844027334,-697.66,0.00043835,60]
[334218054,1722844027373,-500.0,0.00043835,60]
[334218055,1722844027411,-500.0,0.00043835,60]
[334218056,1722844027447,-3024.71,0.00043835,60]
[334218057,1722844027482,-500.0,0.00043835,60]
[334218058,1722844027517,-500.0,0.00043835,60]
[334218059,1722844027560,-744.97,0.00043835,60]
[334218060,1722844027599,-996.96,0.00043835,60]
[334218061,1722844027636,-584.29,0.00043835,60]
[334218062,1722844027672,-500.0,0.00043835,60]
[334218063,1722844027710,-2398.98,0.00043835,60]
[334218064,1722844027747,-2176.07,0.00043835,60]
[334218065,1722844027791,-552.07,0.00043835,60]
[334218066,1722844027829,-3676.17,0.00043835,60]
[334218067,1722844027866,-500.0,0.00043835,60]
[334218068,1722844027901,-500.0,0.00043835,60]
[334218069,1722844027937,-500.0,0.00043835,60]
[334218070,1722844027973,-2763.91,0.00043835,60]
[334218071,1722844028011,-500.0,0.00043835,60]
[334218072,1722844028049,-1002.08,0.00043835,60]
[334218073,1722844028087,-500.87661063,0.00043835,60]
[334218074,1722844028124,-750.01,0.00043835,60]
[334218075,1722844028160,-500.16179191,0.00043835,60]
[334218076,1722844028197,-1538.08,0.00043835,60]
[334218077,1722844028234,-500.71932389,0.00043835,60]
[334218078,1722844028271,-500.0,0.00043835,60]
[334218079,1722844028312,-500.0,0.00043835,60]
[334218080,1722844028351,-500.0,0.00043835,60]
[334218081,1722844028392,-1448.11,0.00043835,60]
[334218082,1722844028429,-2587.1,0.00043835,60]
[334218083,1722844028466,-1605.85,0.00043835,60]
[334218084,1722844028503,-500.0,0.00043835,60]
[334218085,1722844028547,-528.96481779,0.00043835,60]
[334218086,1722844028585,-500.0,0.00043835,60]
[334218087,1722844028622,-500.0,0.00043835,60]
[334218088,1722844028661,-765.91,0.00043835,60]
[334218089,1722844028700,-500.0,0.00043835,60]
[334218090,1722844028739,-3064.52,0.00043835,60]
[334218091,1722844028779,-500.0,0.00043835,60]
[334218092,1722844028824,-1557.46,0.00043835,60]
[334218093,1722844028866,-533.48,0.00043835,60]
[334218094,1722844028906,-500.0,0.00043835,60]
[334218095,1722844028945,-500.0,0.00043835,60]
[334218096,1722844028984,-810.02,0.00043835,60]
[334218097,1722844029023,-1020.46,0.00043835,60]
[334218098,1722844029067,-1149.76,0.00043835,60]
[334218099,1722844029108,-500.0,0.00043835,60]
[334218100,1722844029343,-3579.5,0.00043835,60]
[334218101,1722844029402,-500.0,0.00043835,60]
[334218102,1722844029441,-956.58,0.00043835,60]
[334218103,1722844029478,-2490.57,0.00043835,60]
[334218104,1722844029516,-500.0,0.00043835,60]
[334218105,1722844029553,-500.0,0.00043835,60]
[334218106,1722844029590,-500.0,0.00043835,60]
[334218107,1722844029628,-500.0,0.00043835,60]
[334218108,1722844029665,-1276.34,0.00043835,60]
[334218109,1722844029702,-500.0,0.00043835,60]
[334218110,1722844029740,-500.0,0.00043835,60]
[334218111,1722844029777,-1139.97,0.00043835,60]
[334218112,1722844029822,-500.0,0.00043835,60]
[334218113,1722844029863,-643.09,0.00043835,60]
[334218114,1722844029902,-581.94,0.00043835,60]
[334218115,1722844029940,-544.37,0.00043835,60]
[334218116,1722844029977,-500.0,0.00043835,60]
[334218117,1722844030014,-1206.85,0.00043835,60]
[334218118,1722844030050,-500.0,0.00043835,60]
[334218119,1722844030086,-599.67984895,0.00043835,60]
[334218120,1722844030122,-3091.48,0.00043835,60]
[334218121,1722844030159,-500.0,0.00043835,60]
[334218122,1722844030195,-501.51410263,0.00043835,60]
[334218123,1722844030232,-969.26,0.00043835,60]
[334218124,1722844030267,-2684.86,0.00043835,60]
[334218125,1722844030303,-1258.7,0.00043835,60]
[334218126,1722844030343,-500.0,0.00043835,60]
[334218127,1722844030380,-1112.49,0.00043835,60]
[334218128,1722844030416,-653.32,0.00043835,60]
[334218129,1722844030453,-500.0,0.00043835,60]
[334218130,1722844030490,-500.0,0.00043835,60]
[334218131,1722844030524,-818.34,0.00043835,60]
[334218132,1722844030562,-500.0,0.00043835,60]
[334218133,1722844030596,-782.47,0.00043835,60]
[334218134,1722844030630,-1503.97,0.00043835,60]
[334218135,1722844030665,-500.0,0.00043835,60]
[334218136,1722844030700,-1117.12,0.00043835,60]
[334218137,1722844030737,-500.0,0.00043835,60]
[334218138,1722844030774,-500.0,0.00043835,60]
[334218139,1722844030816,-1479.62,0.00043835,60]
[334218140,1722844030854,-500.0,0.00043835,60]
[334218141,1722844030891,-500.0,0.00043835,60]
[334218142,1722844030928,-500.0,0.00043835,60]
[334218143,1722844030964,-501.0098595,0.00043835,60]
[334218144,1722844031001,-500.0,0.00043835,60]
[334218145,1722844031043,-500.0,0.00043835,60]
[334218146,1722844031083,-500.0,0.00043835,60]
[334218147,1722844031121,-500.0,0.00043835,60]
[334218148,1722844031159,-500.0,0.00043835,60]
[334218149,1722844031195,-500.0,0.00043835,60]
[334218150,1722844031229,-500.5546587,0.00043835,60]
[334218151,1722844031266,-4566.79,0.00043835,60]
[334218152,1722844031302,-500.0,0.00043835,60]
[334218153,1722844031340,-500.0,0.00043835,60]
[334218154,1722844031376,-1317.82615468,0.00043835,120]
[334218155,1722844031414,-665.55,0.00043835,60]
[334218156,1722844031451,-500.0,0.00043835,60]
[334218157,1722844031486,-1862.02,0.00043835,60]
[334218158,1722844031520,-500.0,0.00043835,60]
[334218159,1722844031555,-1106.04,0.00043835,60]
[334218160,1722844031590,-910.91,0.00043835,60]
[334218161,1722844031624,-500.0,0.00043835,60]
[334218162,1722844031660,-500.0,0.00043835,60]
[334218163,1722844031696,-500.0,0.00043835,60]
[334218164,1722844031732,-844.82,0.00043835,60]
[334218165,1722844031770,-2881.09,0.00043835,60]
[334218166,1722844031809,-500.0,0.00043835,60]
[334218167,1722844031846,-500.0,0.00043835,60]
[334218168,1722844031881,-1233.92,0.00043835,60]
[334218169,1722844031918,-150.0,0.00043835,60]
[334218170,1722844031954,-500.0,0.00043835,60]
[334218171,1722844031991,-500.0,0.00043835,60]
[334218172,1722844032030,-1817.05,0.00043835,60]
[334218173,1722844032074,-663.4,0.00043835,60]
[334218174,1722844032112,-940.29,0.00043835,60]
[334218175,1722844032148,-500.0,0.00043835,60]
[334218176,1722844032185,-678.09,0.00043835,60]
[334218177,1722844032221,-678.09,0.00043835,60]
[334218178,1722844032256,-1193.36,0.00043835,60]
[334218179,1722844032298,-1041.73,0.00043835,60]
[334218180,1722844032341,-678.09,0.00043835,60]
[334218181,1722844032379,-678.09,0.00043835,60]
[334218182,1722844032417,-678.09,0.00043835,60]
[334218183,1722844032452,-500.0,0.00043835,60]
[334218184,1722844032488,-678.09,0.00043835,60]
[334218185,1722844032521,-500.0,0.00043835,60]
[334218186,1722844032556,-1889.39,0.00043835,60]
[334218187,1722844032590,-678.09,0.00043835,60]
[334218188,1722844032623,-4031.21,0.00043835,60]
[334218189,1722844032658,-678.09,0.00043835,60]
[334218190,1722844032690,-678.09,0.00043835,60]
[334218191,1722844032723,-575.03,0.00043835,60]
[334218192,1722844032756,-678.09,0.00043835,60]
[334218193,1722844032794,-678.09,0.00043835,60]
[334218194,1722844032835,-678.09,0.00043835,60]
[334218195,1722844032873,-678.09,0.00043835,60]
[334218196,1722844032910,-678.09,0.00043835,60]
[334218197,1722844032945,-500.96434151,0.00043835,60]
[334218198,1722844032981,-678.09,0.00043835,60]
[334218199,1722844033018,-5000.0,0.00043835,60]
[334218200,1722844033058,-1021.91,0.00043835,60]
[334218201,1722844033099,-678.09,0.00043835,60]
[334218202,1722844033137,-889.77,0.00043835,60]
[334218203,1722844033177,-678.09,0.00043835,60]
[334218204,1722844033214,-678.09,0.00043835,60]
[334218205,1722844033248,-678.09,0.00043835,60]
[334218206,1722844033497,-678.09,0.00043835,60]
[334218207,1722844033544,-2391.75,0.00043835,60]
[334218208,1722844033581,-1422.39,0.00043835,60]
[334218209,1722844033617,-678.09,0.00043835,60]
[334218210,1722844033652,-500.0,0.00043835,60]
[334218211,1722844033687,-1481.83,0.00043835,60]
[334218212,1722844033721,-812.97,0.00043835,60]
[334218213,1722844033757,-678.09,0.00043835,60]
[334218214,1722844033797,-678.09,0.00043835,60]
[334218215,1722844033835,-678.13246912,0.00043835,60]
[334218216,1722844033874,-500.0,0.00043835,60]
[334218217,1722844033909,-1178.96,0.00043835,60]
[334218218,1722844033944,-500.0,0.00043835,60]
[334218219,1722844033980,-500.0,0.00043835,60]
[334218220,1722844034019,-1524.82,0.00043835,60]
[334218221,1722844034055,-500.0,0.00043835,60]
[334218222,1722844034091,-500.0,0.00043835,60]
[334218223,1722844034128,-500.0,0.00043835,60]
[334218224,1722844034164,-1094.96,0.00043835,60]
[334218225,1722844034201,-2487.48,0.00043835,60]
[334218226,1722844034237,-789.42,0.00043835,60]
[334218227,1722844034272,-1973.1,0.00043835,60]
[334218228,1722844034307,-989.26,0.00043835,60]
[334218229,1722844034345,-500.0,0.00043835,60]
[334218230,1722844034381,-500.0,0.00043835,60]
[334218231,1722844034417,-500.89063515,0.00043835,60]
[334218232,1722844034453,-500.0,0.00043835,60]
[334218233,1722844034491,-500.0,0.00043835,60]
[334218234,1722844034530,-1515.92,0.00043835,60]
[334218235,1722844034570,-500.86411529,0.00043835,60]
[334218236,1722844034609,-2056.28,0.00043835,60]
[334218237,1722844034647,-3337.89,0.00043835,60]
[334218238,1722844034685,-500.0,0.00043835,60]
[334218239,1722844034722,-1172.06,0.00043835,60]
[334218240,1722844034759,-506.44300461,0.00043835,60]
[334218241,1722844034801,-500.0,0.00043835,60]
[334218242,1722844034839,-500.0,0.00043835,60]
[334218243,1722844034876,-2779.3,0.00043835,60]
[334218244,1722844034913,-979.35,0.00043835,60]
[334218245,1722844034951,-500.0,0.00043835,60]
[334218246,1722844034988,-829.4,0.00043835,60]
[334218247,1722844035031,-500.0,0.00043835,60]
[334218248,1722844035078,-4474.14,0.00043835,60]
[334218249,1722844035120,-795.18,0.00043835,60]
[334218250,1722844035161,-1288.51,0.00043835,60]
[334218251,1722844035199,-500.0,0.00043835,60]
[334218252,1722844035236,-772.19,0.00043835,60]
[334218253,1722844035273,-1615.12,0.00043835,60]
[334218254,1722844035310,-502.560262,0.00043835,60]
[334218255,1722844035347,-1472.89,0.00043835,60]
[334218256,1722844035384,-2513.59,0.00043835,60]
[334218257,1722844035423,-500.0,0.00043835,60]
[334218258,1722844035461,-500.0,0.00043835,60]
[334218259,1722844035498,-683.57,0.00043835,60]
[334218260,1722844035534,-586.11,0.00043835,60]
[334218261,1722844035570,-1121.51,0.00043835,60]
[334218262,1722844035606,-500.0,0.00043835,60]
[334218263,1722844035644,-500.0,0.00043835,60]
[334218264,1722844035681,-500.0,0.00043835,60]
[334218265,1722844035717,-500.0,0.00043835,60]
[334218266,1722844035755,-3536.48,0.00043835,60]
[334218267,1722844035805,-500.0,0.00043835,60]
[334218268,1722844035845,-677.33,0.00043835,60]
[334218269,1722844035883,-500.0,0.00043835,60]
[334218270,1722844035922,-500.0,0.00043835,60]
[334218271,1722844035960,-500.0,0.00043835,60]
[334218272,1722844036004,-500.0,0.00043835,60]
[334218273,1722844036043,-500.80441255,0.00043835,60]
[334218274,1722844036083,-500.0,0.00043835,60]
[334218275,1722844036122,-500.0,0.00043835,60]
[334218276,1722844036167,-534.3,0.00043835,60]
[334218277,1722844036205,-500.0,0.00043835,60]
[334218278,1722844036241,-500.0,0.00043835,60]
[334218279,1722844036279,-1639.94,0.00043835,60]
[334218280,1722844036316,-500.0,0.00043835,60]
[334218281,1722844036354,-576.41,0.00043835,60]
[334218282,1722844036393,-500.0,0.00043835,60]
[334218283,1722844036443,-500.0,0.00043835,60]
[334218284,1722844036480,-500.0,0.00043835,60]
[334218285,1722844036517,-500.0,0.00043835,60]
[334218286,1722844036553,-501.47711022,0.00043835,60]
[334218287,1722844036591,-500.0,0.00043835,60]
[334218288,1722844036628,-500.0,0.00043835,60]
[334218289,1722844036664,-501.93678779,0.00043835,60]
[334218290,1722844036699,-500.0,0.00043835,60]
[334218291,1722844036736,-1009.49,0.00043835,60]
[334218292,1722844036772,-500.0,0.00043835,60]
[334218293,1722844036809,-2105.43,0.00043835,60]
[334218294,1722844036846,-500.0,0.00043835,60]
[334218295,1722844036886,-585.87,0.00043835,60]
[334218296,1722844036925,-500.0,0.00043835,60]
[334218297,1722844036963,-1492.65,0.00043835,60]
[334218298,1722844037002,-1286.6,0.00043835,60]
[334218299,1722844037042,-1984.69,0.00043835,60]
[334218300,1722844037088,-500.0,0.00043835,60]
[334218301,1722844037128,-156.89950824,0.00043835,60]
[334218302,1722844037171,-500.0,0.00043835,60]
[334218303,1722844037210,-500.0,0.00043835,60]
[334218304,1722844037248,-2105.98,0.00043835,60]
[334218305,1722844037286,-1249.4,0.00043835,60]
[334218306,1722844037321,-500.0,0.00043835,60]
[334218307,1722844037356,-1170.05,0.00043835,60]
[334218308,1722844037391,-962.27,0.00043835,60]
[334218309,1722844037429,-2483.31,0.00043835,60]
[334218310,1722844037466,-1643.1,0.00043835,60]
[334218311,1722844037501,-398.93374376,0.00043835,60]
[334218312,1722844037772,-1511.13,0.00043835,60]
[334218313,1722844037813,-2956.4,0.00043835,60]
[334218314,1722844037853,-3521.35,0.00043835,60]
[334218315,1722844037892,-500.0,0.00043835,60]
[334218316,1722844037931,-500.0,0.00043835,60]
[334218317,1722844037969,-1504.27,0.00043835,60]
[334218318,1722844038010,-500.09083597,0.00043835,60]
[334218319,1722844038051,-502.10177159,0.00043835,60]
[334218320,1722844038089,-500.0,0.00043835,60]
[334218321,1722844038128,-754.33,0.00043835,60]
[334218322,1722844038167,-1298.6,0.00043835,60]
[334218323,1722844038205,-501.72901502,0.00043835,60]
[334218324,1722844038243,-500.0,0.00043835,60]
[334218325,1722844038281,-500.0,0.00043835,60]
[334218326,1722844038320,-500.0,0.00043835,60]
[334218327,1722844038358,-500.0,0.00043835,60]
[334218328,1722844038396,-722.49,0.00043835,60]
[334218329,1722844038437,-500.0,0.00043835,60]
[334218330,1722844038476,-500.0,0.00043835,60]
[334218331,1722844038514,-1043.13,0.00043835,60]
[334218332,1722844038554,-500.49304329,0.00043835,60]
[334218333,1722844038593,-500.0,0.00043835,60]
[334218334,1722844038634,-500.0,0.00043835,60]
[334218335,1722844038673,-500.0,0.00043835,60]
[334218336,1722844038711,-936.69,0.00043835,60]
[334218337,1722844038752,-500.0,0.00043835,60]
[334218338,1722844038791,-2164.97,0.00043835,60]
[334218339,1722844038831,-504.07,0.00043835,60]
[334218340,1722844038870,-1861.15,0.00043835,60]
[334218341,1722844038910,-500.0,0.00043835,60]
[334218342,1722844038950,-500.0,0.00043835,60]
[334218343,1722844038988,-4515.22,0.00043835,60]
[334218344,1722844039028,-500.0,0.00043835,60]
[334218345,1722844039067,-500.0,0.00043835,60]
[334218346,1722844039107,-500.0,0.00043835,60]
[334218347,1722844039146,-500.0,0.00043835,60]
[334218348,1722844039187,-1258.84,0.00043835,60]
[334218349,1722844039228,-776.86,0.00043835,60]
[334218350,1722844039268,-500.0,0.00043835,60]
[334218351,1722844039305,-507.32268857,0.00043835,60]
[334218352,1722844039344,-500.0,0.00043835,60]
[334218353,1722844039383,-859.54,0.00043835,60]
[334218354,1722844039421,-1478.25,0.00043835,60]
[334218355,1722844039459,-513.56,0.00043835,60]
[334218356,1722844039498,-970.46,0.00043835,60]
[334218357,1722844039536,-500.5134533,0.00043835,60]
[334218358,1722844039574,-585.63,0.00043835,60]
[334218359,1722844039612,-500.0,0.00043835,60]
[334218360,1722844039655,-500.0,0.00043835,60]
[334218361,1722844039695,-936.94,0.00043835,60]
[334218362,1722844039738,-705.37,0.00043835,60]
[334218363,1722844039778,-1195.43,0.00043835,60]
[334218364,1722844039819,-1968.5,0.00043835,60]
[334218365,1722844039860,-500.0,0.00043835,60]
[334218366,1722844039899,-2221.06,0.00043835,60]
[334218367,1722844039938,-500.171906,0.00043835,60]
[334218368,1722844039979,-1495.03,0.00043835,60]
[334218369,1722844040019,-3474.81,0.00043835,60]
[334218370,1722844040060,-1252.99,0.00043835,60]
[334218371,1722844040099,-631.95,0.00043835,60]
[334218372,1722844040139,-1569.23,0.00043835,60]
[334218373,1722844040178,-1500.6,0.00043835,60]
[334218374,1722844040217,-3329.16,0.00043835,60]
[334218375,1722844040257,-500.0,0.00043835,60]
[334218376,1722844040296,-500.0,0.00043835,60]
[334218377,1722844040351,-500.0,0.00043835,60]
[334218378,1722844040390,-500.0,0.00043835,60]
[334218379,1722844040430,-806.66,0.00043835,60]
[334218380,1722844040469,-500.0,0.00043835,60]
[334218381,1722844040509,-3499.13,0.00043835,60]
[334218382,1722844040547,-500.0,0.00043835,60]
[334218383,1722844040584,-500.0,0.00043835,60]
[334218384,1722844040622,-500.0,0.00043835,60]
[334218385,1722844040659,-3090.85,0.00043835,60]
[334218386,1722844040698,-500.0,0.00043835,60]
[334218387,1722844040738,-500.0,0.00043835,60]
[334218388,1722844040777,-500.0,0.00043835,60]
[334218389,1722844040827,-1012.27,0.00043835,60]
[334218390,1722844040866,-1026.49,0.00043835,60]
[334218391,1722844040907,-2889.59,0.00043835,60]
[334218392,1722844040947,-500.0,0.00043835,60]
[334218393,1722844040987,-500.0,0.00043835,60]
[334218394,1722844041026,-3582.16,0.00043835,60]
[334218395,1722844041064,-1190.05,0.00043835,60]
[334218396,1722844041105,-804.29,0.00043835,60]
[334218397,1722844041143,-648.35,0.00043835,60]
[334218398,1722844041184,-500.0,0.00043835,60]
[334218399,1722844041222,-500.0,0.00043835,60]
[334218400,1722844041260,-2656.27,0.00043835,60]
[334218401,1722844041298,-3334.46,0.00043835,60]
[334218402,1722844041355,-500.0,0.00043835,60]
[334218403,1722844041391,-2000.0,0.00043835,60]
[334218404,1722844041431,-1816.19,0.00043835,60]
[334218405,1722844041468,-500.0,0.00043835,60]
[334218406,1722844041505,-500.0,0.00043835,60]
[334218407,1722844041541,-1419.38,0.00043835,60]
[334218408,1722844041577,-1205.65,0.00043835,60]
[334218409,1722844041612,-500.0,0.00043835,60]
[334218410,1722844041648,-960.05,0.00043835,60]
[334218411,1722844041684,-2829.69,0.00043835,60]
[334218412,1722844041720,-500.0,0.00043835,60]
[334218413,1722844041756,-500.12055924,0.00043835,60]
[334218414,1722844041793,-500.103589,0.00043835,60]
[334218415,1722844041840,-1249.16,0.00043835,60]
[334218416,1722844041877,-500.0,0.00043835,60]
[334218417,1722844041914,-500.0,0.00043835,60]
[334218418,1722844041953,-1429.17,0.00043835,60]
[334218419,1722844042231,-2102.16,0.00043835,60]
[334218420,1722844042271,-501.209854,0.00043835,60]
[334218421,1722844042308,-1239.51,0.00043835,60]
[334218422,1722844042359,-500.0,0.00043835,60]
[334218423,1722844042402,-500.0,0.00043835,60]
[334218424,1722844042440,-1591.86,0.00043835,60]
[334218425,1722844042478,-621.71,0.00043835,60]
[334218426,1722844042516,-2254.38,0.00043835,60]
[334218427,1722844042553,-500.0,0.00043835,60]
[334218428,1722844042590,-602.16,0.00043835,60]
[334218429,1722844042627,-500.0,0.00043835,60]
[334218430,1722844042662,-1444.06,0.00043835,120]
[334218431,1722844042699,-2796.97,0.00043835,60]
[334218432,1722844042736,-540.84,0.00043835,60]
[334218433,1722844042775,-568.86,0.00043835,60]
[334218434,1722844042815,-1381.56,0.00043835,60]
[334218435,1722844042859,-500.0,0.00043835,60]
[334218436,1722844042897,-501.95079574,0.00043835,60]
[334218437,1722844042935,-500.0,0.00043835,60]
[334218438,1722844042972,-545.47515525,0.00043835,60]
[334218439,1722844043009,-627.42,0.00043835,60]
[334218440,1722844043047,-990.25,0.00043835,60]
[334218441,1722844043087,-1387.53,0.00043835,60]
[334218442,1722844043125,-3059.77,0.00043835,60]
[334218443,1722844043163,-500.0,0.00043835,60]
[334218444,1722844043200,-500.0,0.00043835,60]
[334218445,1722844043237,-500.0,0.00043835,60]
[334218446,1722844043273,-500.0,0.00043835,60]
[334218447,1722844043311,-1284.45,0.00043835,60]
[334218448,1722844043363,-500.3490848,0.00043835,60]
[334218449,1722844043400,-2164.6,0.00043835,60]
[334218450,1722844043439,-1495.86,0.00043835,60]
[334218451,1722844043476,-1060.48,0.00043835,60]
[334218452,1722844043513,-501.77229814,0.00043835,60]
[334218453,1722844043551,-780.62,0.00043835,60]
[334218454,1722844043599,-500.0,0.00043835,60]
[334218455,1722844043638,-500.0,0.00043835,60]
[334218456,1722844043678,-4606.13,0.00043835,60]
[334218457,1722844043717,-500.0,0.00043835,60]
[334218458,1722844043759,-579.6,0.00043835,60]
[334218459,1722844043799,-500.0,0.00043835,60]
[334218460,1722844043844,-738.94,0.00043835,60]
[334218461,1722844043885,-500.0,0.00043835,60]
[334218462,1722844043927,-519.54,0.00043835,60]
[334218463,1722844043966,-648.7,0.00043835,60]
[334218464,1722844044006,-1716.06,0.00043835,60]
[334218465,1722844044046,-1963.93,0.00043835,60]
[334218466,1722844044100,-301.08267647,0.00043835,60]
[334218467,1722844044142,-1163.31,0.00043835,60]
[334218468,1722844044183,-3883.3,0.00043835,60]
[334218469,1722844044222,-500.0,0.00043835,60]
[334218470,1722844044261,-900.66,0.00043835,60]
[334218471,1722844044300,-500.0,0.00043835,60]
[334218472,1722844044350,-500.0,0.00043835,60]
[334218473,1722844044389,-1444.52,0.00043835,60]
[334218474,1722844044429,-1825.76,0.00043835,60]
[334218475,1722844044475,-991.12,0.00043835,60]
[334218476,1722844044516,-1271.73,0.00043835,60]
[334218477,1722844044555,-500.0,0.00043835,60]
[334218478,1722844044601,-500.0,0.00043835,60]
[334218479,1722844044638,-502.25810038,0.00043835,60]
[334218480,1722844044676,-500.0,0.00043835,60]
[334218481,1722844044714,-776.44,0.00043835,60]
[334218482,1722844044752,-500.55017367,0.00043835,60]
[334218483,1722844044790,-504.62712019,0.00043835,60]